[Event "Titled Tuesday Blitz October 31 Late 2023"]
[White "Spichkin, Alexander"]
[Black "Hamitevici, Vladimir"]
[WhiteFideId "4144074"]
[BlackFideId "13902393"]
[WhiteElo "2400"]
[BlackElo "2710"]
[Result "0-1"]
[Round "1"]
[TimeControl "180+1"]
[Date "2023.10.31"]
[WhiteClock "0:00:49"]
[BlackClock "0:00:16"]
[Board "82"]

1. f4 {[%clk 0:03:00]}  d6 {[%clk 0:03:00]} 2. Nf3 {[%clk 0:03:00]}  g6 {[%clk 0:03:00]} 3. d3 {[%clk 0:03:00]}  Bg7 {[%clk 0:03:00]} 4. e4 {[%clk 0:03:00]}  Nf6 {[%clk 0:02:59]} 5. Be2 {[%clk 0:03:01]}  O-O {[%clk 0:03:00]} 6. O-O {[%clk 0:03:01]}  c5 {[%clk 0:03:00]} 7. Nc3 {[%clk 0:03:02]}  Nc6 {[%clk 0:03:00]} 8. Qe1 {[%clk 0:03:02]}  Rb8 {[%clk 0:03:00]} 9. a4 {[%clk 0:03:02]}  a6 {[%clk 0:03:00]} 10. Qh4 {[%clk 0:03:02]}  b5 {[%clk 0:02:57]} 11. axb5 {[%clk 0:03:01]}  axb5 {[%clk 0:02:57]} 12. f5 {[%clk 0:03:02]}  b4 {[%clk 0:02:57]} 13. Nd1 {[%clk 0:03:02]}  Nd4 {[%clk 0:02:34]} 14. Nxd4 {[%clk 0:03:01]}  cxd4 {[%clk 0:02:35]} 15. Nf2 {[%clk 0:03:00]}  gxf5 {[%clk 0:02:23]} 16. Bh6 {[%clk 0:02:58]}  Bxh6 {[%clk 0:02:13]} 17. Qxh6 {[%clk 0:02:57]}  Kh8 {[%clk 0:02:12]} 18. Nh3 {[%clk 0:02:54]}  Rg8 {[%clk 0:02:05]} 19. Ng5 {[%clk 0:02:49]}  Qf8 {[%clk 0:02:05]} 20. Qxf8 {[%clk 0:02:32]}  Rxf8 {[%clk 0:02:06]} 21. exf5 {[%clk 0:02:32]}  b3 {[%clk 0:01:56]} 22. cxb3 {[%clk 0:02:25]}  Rxb3 {[%clk 0:01:57]} 23. Ra7 {[%clk 0:02:24]}  Nd5 {[%clk 0:01:43]} 24. Bf3 {[%clk 0:02:20]}  Ne3 {[%clk 0:01:41]} 25. Rb1 {[%clk 0:02:12]}  h6 {[%clk 0:01:27]} 26. Ne4 {[%clk 0:02:03]}  Nxf5 {[%clk 0:01:26]} 27. Ra8 {[%clk 0:01:46]}  Kg7 {[%clk 0:01:20]} 28. Bg4 {[%clk 0:01:39]}  Be6 {[%clk 0:01:13]} 29. Ra7 {[%clk 0:01:36]}  Rxd3 {[%clk 0:01:03]} 30. Rf1 {[%clk 0:01:27]}  Re3 {[%clk 0:00:43]} 31. Bxf5 {[%clk 0:01:21]}  Bxf5 {[%clk 0:00:39]} 32. Ng3 {[%clk 0:01:19]}  Bd3 {[%clk 0:00:34]} 33. Rd1 {[%clk 0:01:12]}  e5 {[%clk 0:00:23]} 34. Rd7 {[%clk 0:01:09]}  Bc2 {[%clk 0:00:22]} 35. Rd2 {[%clk 0:01:06]}  Bg6 {[%clk 0:00:16]} 36. Rxd6 {[%clk 0:01:03]}  Rc8 {[%clk 0:00:17]} 37. h4 {[%clk 0:01:01]}  Rxg3 {[%clk 0:00:16]} 38. Kf2 {[%clk 0:01:01]}  Rb3 {[%clk 0:00:15]} 39. g4 {[%clk 0:01:01]}  h5 {[%clk 0:00:15]} 40. Rd5 {[%clk 0:01:00]}  Re8 {[%clk 0:00:15]} 41. Re2 {[%clk 0:00:57]}  hxg4 {[%clk 0:00:13]} 42. Rdxe5 {[%clk 0:00:56]}  Rxe5 {[%clk 0:00:14]} 43. Rxe5 {[%clk 0:00:55]}  Rxb2+ {[%clk 0:00:14]} 44. Kg3 {[%clk 0:00:55]}  f5 {[%clk 0:00:15]} 45. h5 {[%clk 0:00:56]}  Bxh5 {[%clk 0:00:13]} 46. Rxf5 {[%clk 0:00:56]}  Kg6 {[%clk 0:00:14]} 47. Rd5 {[%clk 0:00:56]}  Rd2 {[%clk 0:00:14]} 48. Kf4 {[%clk 0:00:56]}  d3 {[%clk 0:00:13]} 49. Rd6+ {[%clk 0:00:56]}  Kg7 {[%clk 0:00:14]} 50. Kg5 {[%clk 0:00:57]}  g3 {[%clk 0:00:13]} 51. Kxh5 {[%clk 0:00:56]}  g2 {[%clk 0:00:14]} 52. Rg6+ {[%clk 0:00:56]}  Kf7 {[%clk 0:00:15]} 53. Rg3 {[%clk 0:00:57]}  Re2 {[%clk 0:00:14]} 54. Rf3+ {[%clk 0:00:53]}  Ke7 {[%clk 0:00:14]} 55. Rxd3 {[%clk 0:00:54]}  g1=Q {[%clk 0:00:14]} 56. Rh3 {[%clk 0:00:54]}  Rh2 {[%clk 0:00:14]} 57. Rh4 {[%clk 0:00:53]}  Qg3 {[%clk 0:00:14]} 58. Rxh2 {[%clk 0:00:52]}  Qxh2+ {[%clk 0:00:15]} 59. Kg4 {[%clk 0:00:49]}  Qd6 {[%clk 0:00:16]} 0-1


[Site "https://www.chess.com"]

[Event "Titled Tuesday Blitz October 31 Late 2023"]
[White "Tokhirjonova, Gulrukhbegim"]
[Black "Kawuma, Patrick"]
[WhiteFideId "14203626"]
[BlackFideId "10000127"]
[WhiteElo "2709"]
[BlackElo "2400"]
[Result "1/2-1/2"]
[Round "1"]
[TimeControl "180+1"]
[Date "2023.10.31"]
[WhiteClock "0:00:07"]
[BlackClock "0:00:06"]
[Board "83"]

1. e4 {[%clk 0:02:59]}  c5 {[%clk 0:03:00]} 2. Nf3 {[%clk 0:02:48]}  Nc6 {[%clk 0:03:00]} 3. Bb5 {[%clk 0:02:47]}  d6 {[%clk 0:02:56]} 4. O-O {[%clk 0:02:38]}  Bd7 {[%clk 0:02:56]} 5. Re1 {[%clk 0:02:32]}  a6 {[%clk 0:02:55]} 6. Bf1 {[%clk 0:02:31]}  Nf6 {[%clk 0:02:50]} 7. Nc3 {[%clk 0:02:27]}  g6 {[%clk 0:02:45]} 8. e5 {[%clk 0:02:23]}  dxe5 {[%clk 0:02:39]} 9. Nxe5 {[%clk 0:02:23]}  Bg7 {[%clk 0:02:31]} 10. d3 {[%clk 0:02:11]}  O-O {[%clk 0:02:26]} 11. Bf4 {[%clk 0:02:11]}  Nxe5 {[%clk 0:02:18]} 12. Bxe5 {[%clk 0:02:08]}  Bc6 {[%clk 0:02:15]} 13. Qd2 {[%clk 0:02:06]}  b5 {[%clk 0:02:11]} 14. a3 {[%clk 0:02:05]}  Qd7 {[%clk 0:01:36]} 15. Rad1 {[%clk 0:01:57]}  Rad8 {[%clk 0:01:32]} 16. h3 {[%clk 0:01:56]}  b4 {[%clk 0:01:29]} 17. axb4 {[%clk 0:01:48]}  cxb4 {[%clk 0:01:29]} 18. Nb1 {[%clk 0:01:42]}  a5 {[%clk 0:01:26]} 19. c3 {[%clk 0:01:33]}  Qb7 {[%clk 0:01:14]} 20. d4 {[%clk 0:01:26]}  Rd7 {[%clk 0:01:12]} 21. c4 {[%clk 0:01:24]}  Ne4 {[%clk 0:01:01]} 22. Qf4 {[%clk 0:01:19]}  f6 {[%clk 0:00:57]} 23. d5 {[%clk 0:01:03]}  Ba4 {[%clk 0:00:43]} 24. Rc1 {[%clk 0:00:47]}  Nc5 {[%clk 0:00:27]} 25. Bd4 {[%clk 0:00:36]}  Nb3 {[%clk 0:00:27]} 26. Rcd1 {[%clk 0:00:34]}  Nxd4 {[%clk 0:00:23]} 27. Rxd4 {[%clk 0:00:33]}  f5 {[%clk 0:00:22]} 28. Rd2 {[%clk 0:00:32]}  Rfd8 {[%clk 0:00:17]} 29. g3 {[%clk 0:00:29]}  Bf6 {[%clk 0:00:17]} 30. h4 {[%clk 0:00:27]}  Qb6 {[%clk 0:00:17]} 31. Re6 {[%clk 0:00:23]}  Rd6 {[%clk 0:00:15]} 32. Re3 {[%clk 0:00:13]}  Qc5 {[%clk 0:00:13]} 33. b3 {[%clk 0:00:06]}  Be8 {[%clk 0:00:13]} 34. Re1 {[%clk 0:00:05]}  Bf7 {[%clk 0:00:13]} 35. Rde2 {[%clk 0:00:05]}  a4 {[%clk 0:00:12]} 36. bxa4 {[%clk 0:00:04]}  b3 {[%clk 0:00:13]} 37. Nd2 {[%clk 0:00:04]}  b2 {[%clk 0:00:12]} 38. Rb1 {[%clk 0:00:02]}  Ra8 {[%clk 0:00:11]} 39. Nf3 {[%clk 0:00:02]}  Rxa4 {[%clk 0:00:11]} 40. Ne5 {[%clk 0:00:02]}  Bxe5 {[%clk 0:00:10]} 41. Qxe5 {[%clk 0:00:03]}  Rd7 {[%clk 0:00:09]} 42. Ree1 {[%clk 0:00:03]}  Rb4 {[%clk 0:00:08]} 43. Rxb2 {[%clk 0:00:03]}  Rxb2 {[%clk 0:00:08]} 44. Qxb2 {[%clk 0:00:03]}  Qa5 {[%clk 0:00:07]} 45. Qb8+ {[%clk 0:00:04]}  Rd8 {[%clk 0:00:07]} 46. Qe5 {[%clk 0:00:04]}  Re8 {[%clk 0:00:07]} 47. Rd1 {[%clk 0:00:05]}  Qa4 {[%clk 0:00:06]} 48. Be2 {[%clk 0:00:05]}  Qa2 {[%clk 0:00:06]} 49. c5 {[%clk 0:00:05]}  Rd8 {[%clk 0:00:04]} 50. d6 {[%clk 0:00:04]}  exd6 {[%clk 0:00:03]} 51. cxd6 {[%clk 0:00:05]}  Qa3 {[%clk 0:00:03]} 52. d7 {[%clk 0:00:04]}  Qa4 {[%clk 0:00:03]} 53. Bf3 {[%clk 0:00:03]}  Qa3 {[%clk 0:00:02]} 54. Kg2 {[%clk 0:00:03]}  Qf8 {[%clk 0:00:02]} 55. Qd6 {[%clk 0:00:03]}  Qxd6 {[%clk 0:00:02]} 56. Rxd6 {[%clk 0:00:04]}  Kf8 {[%clk 0:00:03]} 57. Bc6 {[%clk 0:00:04]}  Ke7 {[%clk 0:00:03]} 58. Rd2 {[%clk 0:00:05]}  Be6 {[%clk 0:00:04]} 59. Re2 {[%clk 0:00:05]}  Kd6 {[%clk 0:00:04]} 60. Ba4 {[%clk 0:00:05]}  Bxd7 {[%clk 0:00:04]} 61. Rd2+ {[%clk 0:00:04]}  Ke7 {[%clk 0:00:05]} 62. Bxd7 {[%clk 0:00:05]}  Rxd7 {[%clk 0:00:05]} 63. Re2+ {[%clk 0:00:06]}  Kf6 {[%clk 0:00:05]} 64. f3 {[%clk 0:00:06]}  Rf7 {[%clk 0:00:05]} 65. Ra2 {[%clk 0:00:07]}  h6 {[%clk 0:00:06]} 66. Kh3 {[%clk 0:00:08]}  Kg7 {[%clk 0:00:04]} 67. Ra6 {[%clk 0:00:08]}  Rf6 {[%clk 0:00:05]} 68. Ra7+ {[%clk 0:00:09]}  Rf7 {[%clk 0:00:05]} 69. Ra8 {[%clk 0:00:10]}  Rf8 {[%clk 0:00:05]} 70. Ra5 {[%clk 0:00:10]}  Rf7 {[%clk 0:00:05]} 71. Kg2 {[%clk 0:00:08]}  h5 {[%clk 0:00:05]} 72. Kf2 {[%clk 0:00:08]}  Re7 {[%clk 0:00:06]} 73. Ra6 {[%clk 0:00:08]}  Kf7 {[%clk 0:00:06]} 74. Kg2 {[%clk 0:00:08]}  Re5 {[%clk 0:00:07]} 75. Kh3 {[%clk 0:00:05]}  Re7 {[%clk 0:00:07]} 76. g4 {[%clk 0:00:05]}  fxg4+ {[%clk 0:00:07]} 77. fxg4 {[%clk 0:00:05]}  Re3+ {[%clk 0:00:07]} 78. Kg2 {[%clk 0:00:06]}  hxg4 {[%clk 0:00:08]} 79. Ra4 {[%clk 0:00:06]}  g3 {[%clk 0:00:07]} 80. Rg4 {[%clk 0:00:07]}  Kf6 {[%clk 0:00:06]} 81. Rxg3 {[%clk 0:00:06]}  Rxg3+ {[%clk 0:00:06]} 82. Kxg3 {[%clk 0:00:07]}  Kf5 {[%clk 0:00:06]} 83. Kf3 {[%clk 0:00:07]}  g5 {[%clk 0:00:06]} 84. hxg5 {[%clk 0:00:07]}  Kxg5 {[%clk 0:00:06]} 1/2-1/2


[Site "https://www.chess.com"]

[Event "Titled Tuesday Blitz October 31 Late 2023"]
[White "Hoffmann, Asa"]
[Black "Pruijssers, Roeland"]
[WhiteFideId "2001470"]
[BlackFideId "1013068"]
[WhiteElo "2397"]
[BlackElo "2698"]
[Result "1-0"]
[Round "1"]
[TimeControl "180+1"]
[Date "2023.10.31"]
[WhiteClock "0:00:59"]
[BlackClock "0:00:00"]
[Board "84"]

1. d4 {[%clk 0:02:54]}  f5 {[%clk 0:02:56]} 2. Nc3 {[%clk 0:02:53]}  Nf6 {[%clk 0:02:55]} 3. Bg5 {[%clk 0:02:52]}  d5 {[%clk 0:02:53]} 4. f3 {[%clk 0:02:52]}  Nc6 {[%clk 0:02:50]} 5. e4 {[%clk 0:02:49]}  fxe4 {[%clk 0:02:40]} 6. fxe4 {[%clk 0:02:49]}  Nxe4 {[%clk 0:02:40]} 7. Nxe4 {[%clk 0:02:47]}  dxe4 {[%clk 0:02:40]} 8. c3 {[%clk 0:02:41]}  Qd5 {[%clk 0:02:35]} 9. Bf4 {[%clk 0:02:33]}  e5 {[%clk 0:02:09]} 10. dxe5 {[%clk 0:02:32]}  Be6 {[%clk 0:02:05]} 11. Qxd5 {[%clk 0:02:28]}  Bxd5 {[%clk 0:02:03]} 12. Ne2 {[%clk 0:02:10]}  Bc5 {[%clk 0:01:58]} 13. Ng3 {[%clk 0:02:05]}  O-O {[%clk 0:01:54]} 14. O-O-O {[%clk 0:01:58]}  Rxf4 {[%clk 0:01:05]} 15. Rxd5 {[%clk 0:01:57]}  Bb6 {[%clk 0:00:59]} 16. Bc4 {[%clk 0:01:52]}  Kh8 {[%clk 0:01:00]} 17. Rhd1 {[%clk 0:01:51]}  Re8 {[%clk 0:00:58]} 18. e6 {[%clk 0:01:49]}  e3 {[%clk 0:00:54]} 19. Ne2 {[%clk 0:01:43]}  Rf2 {[%clk 0:00:52]} 20. b4 {[%clk 0:01:41]}  a6 {[%clk 0:00:42]} 21. a4 {[%clk 0:01:39]}  Rxg2 {[%clk 0:00:38]} 22. a5 {[%clk 0:01:39]}  Ba7 {[%clk 0:00:36]} 23. Rd7 {[%clk 0:01:39]}  Bb8 {[%clk 0:00:31]} 24. Bd5 {[%clk 0:01:37]}  Rxe2 {[%clk 0:00:21]} 25. Bxc6 {[%clk 0:01:37]}  Rd2 {[%clk 0:00:18]} 26. R1xd2 {[%clk 0:01:11]}  exd2+ {[%clk 0:00:19]} 27. Kxd2 {[%clk 0:01:10]}  bxc6 {[%clk 0:00:19]} 28. e7 {[%clk 0:01:10]}  Kg8 {[%clk 0:00:19]} 29. Kd3 {[%clk 0:01:09]}  Kf7 {[%clk 0:00:19]} 30. Kc4 {[%clk 0:01:08]}  Rxe7 {[%clk 0:00:19]} 31. Rd8 {[%clk 0:01:08]}  Re8 {[%clk 0:00:20]} 32. Rd7+ {[%clk 0:01:09]}  Kf6 {[%clk 0:00:20]} 33. Kc5 {[%clk 0:01:09]}  Re5+ {[%clk 0:00:19]} 34. Kxc6 {[%clk 0:01:08]}  Re3 {[%clk 0:00:13]} 35. c4 {[%clk 0:01:08]}  Rb3 {[%clk 0:00:12]} 36. b5 {[%clk 0:01:07]}  Ra3 {[%clk 0:00:09]} 37. Kb7 {[%clk 0:01:06]}  Rxa5 {[%clk 0:00:09]} 38. Kxb8 {[%clk 0:01:03]}  axb5 {[%clk 0:00:08]} 39. c5 {[%clk 0:01:03]}  c6 {[%clk 0:00:06]} 40. Kb7 {[%clk 0:01:03]}  b4 {[%clk 0:00:04]} 41. Kxc6 {[%clk 0:01:02]}  b3 {[%clk 0:00:01]} 42. Rb7 {[%clk 0:01:02]}  Ra2 {[%clk 0:00:02]} 43. Kd7 {[%clk 0:01:02]}  Rxh2 {[%clk 0:00:02]} 44. c6 {[%clk 0:01:02]}  Rd2+ {[%clk 0:00:03]} 45. Kc8 {[%clk 0:01:02]}  b2 {[%clk 0:00:03]} 46. c7 {[%clk 0:01:01]}  Rc2 {[%clk 0:00:02]} 47. Kb8 {[%clk 0:01:01]}  h5 {[%clk 0:00:02]} 48. c8=Q {[%clk 0:01:01]}  Rxc8+ {[%clk 0:00:02]} 49. Kxc8 {[%clk 0:01:01]}  h4 {[%clk 0:00:02]} 50. Rxb2 {[%clk 0:01:01]}  g5 {[%clk 0:00:01]} 51. Kd7 {[%clk 0:01:00]}  g4 {[%clk 0:00:01]} 52. Kd6 {[%clk 0:01:00]}  g3 {[%clk 0:00:01]} 53. Kd5 {[%clk 0:01:00]}  Kf5 {[%clk 0:00:00]} 54. Rb8 {[%clk 0:00:59]} 1-0


[Site "https://www.chess.com"]

[Event "Titled Tuesday Blitz October 31 Late 2023"]
[White "Mendez Fortes, Eduardo Jesus"]
[Black "Gerbelli Neto, Eduardo"]
[WhiteFideId "3502376"]
[BlackFideId "2103281"]
[WhiteElo "2692"]
[BlackElo "2396"]
[Result "1-0"]
[Round "1"]
[TimeControl "180+1"]
[Date "2023.10.31"]
[WhiteClock "0:01:04"]
[BlackClock "0:00:03"]
[Board "87"]

1. e4 {[%clk 0:03:00]}  e5 {[%clk 0:02:54]} 2. Nf3 {[%clk 0:03:00]}  Nc6 {[%clk 0:02:54]} 3. Bb5 {[%clk 0:03:01]}  a6 {[%clk 0:02:54]} 4. Ba4 {[%clk 0:03:01]}  d6 {[%clk 0:02:55]} 5. c3 {[%clk 0:03:00]}  f5 {[%clk 0:02:53]} 6. exf5 {[%clk 0:02:54]}  Bxf5 {[%clk 0:02:54]} 7. O-O {[%clk 0:02:51]}  Bd3 {[%clk 0:02:53]} 8. Re1 {[%clk 0:02:49]}  Be7 {[%clk 0:02:54]} 9. Bc2 {[%clk 0:02:47]}  Bxc2 {[%clk 0:02:51]} 10. Qxc2 {[%clk 0:02:48]}  Nf6 {[%clk 0:02:52]} 11. d4 {[%clk 0:02:47]}  e4 {[%clk 0:02:52]} 12. Ng5 {[%clk 0:02:45]}  d5 {[%clk 0:02:50]} 13. f3 {[%clk 0:02:30]}  h6 {[%clk 0:02:45]} 14. Nh3 {[%clk 0:02:30]}  O-O {[%clk 0:02:41]} 15. Nd2 {[%clk 0:02:27]}  exf3 {[%clk 0:02:27]} 16. Nxf3 {[%clk 0:02:28]}  Bd6 {[%clk 0:02:03]} 17. Nf4 {[%clk 0:02:25]}  Bxf4 {[%clk 0:01:47]} 18. Bxf4 {[%clk 0:02:24]}  Ne4 {[%clk 0:01:48]} 19. Be3 {[%clk 0:02:22]}  Ne7 {[%clk 0:01:44]} 20. c4 {[%clk 0:02:21]}  c6 {[%clk 0:01:45]} 21. c5 {[%clk 0:02:20]}  Ng6 {[%clk 0:01:33]} 22. Qb3 {[%clk 0:02:14]}  Rf7 {[%clk 0:01:11]} 23. Rf1 {[%clk 0:02:12]}  Qc7 {[%clk 0:00:59]} 24. Rae1 {[%clk 0:02:06]}  Raf8 {[%clk 0:00:58]} 25. Bc1 {[%clk 0:02:05]}  Kh7 {[%clk 0:00:54]} 26. Qd3 {[%clk 0:01:56]}  b6 {[%clk 0:00:41]} 27. cxb6 {[%clk 0:01:52]}  Qxb6 {[%clk 0:00:42]} 28. Kh1 {[%clk 0:01:50]}  Qb5 {[%clk 0:00:42]} 29. Qd1 {[%clk 0:01:40]}  Nh4 {[%clk 0:00:37]} 30. a4 {[%clk 0:01:39]}  Qc4 {[%clk 0:00:25]} 31. b3 {[%clk 0:01:37]}  Qc3 {[%clk 0:00:16]} 32. Nxh4 {[%clk 0:01:21]}  Qxe1 {[%clk 0:00:16]} 33. Rxe1 {[%clk 0:01:19]}  Nf2+ {[%clk 0:00:16]} 34. Kg1 {[%clk 0:01:19]}  Nxd1 {[%clk 0:00:17]} 35. Rxd1 {[%clk 0:01:20]}  Rf2 {[%clk 0:00:15]} 36. Nf3 {[%clk 0:01:18]}  Rc2 {[%clk 0:00:15]} 37. Bd2 {[%clk 0:01:14]}  Re8 {[%clk 0:00:15]} 38. Kf1 {[%clk 0:01:13]}  c5 {[%clk 0:00:14]} 39. dxc5 {[%clk 0:01:12]}  Rxc5 {[%clk 0:00:15]} 40. Nd4 {[%clk 0:01:06]}  Re4 {[%clk 0:00:14]} 41. Be1 {[%clk 0:01:06]}  Re3 {[%clk 0:00:11]} 42. Bf2 {[%clk 0:01:06]}  Rec3 {[%clk 0:00:10]} 43. Ne2 {[%clk 0:01:05]}  Rc8 {[%clk 0:00:07]} 44. Nxc3 {[%clk 0:01:04]}  Rxc3 {[%clk 0:00:08]} 45. b4 {[%clk 0:01:05]}  Rb3 {[%clk 0:00:07]} 46. Bc5 {[%clk 0:01:04]}  Ra3 {[%clk 0:00:03]} 47. a5 {[%clk 0:01:04]} 1-0


[Site "https://www.chess.com"]

[Event "Titled Tuesday Blitz October 31 Late 2023"]
[White "Janaszak, Dawid"]
[Black "SergioMoralesG"]
[WhiteFideId "1119206"]
[WhiteElo "2680"]
[BlackElo "2385"]
[Result "1-0"]
[Round "1"]
[TimeControl "180+1"]
[Date "2023.10.31"]
[WhiteClock "0:00:50"]
[BlackClock "0:00:00"]
[Board "89"]

1. e4 {[%clk 0:03:00]}  c5 {[%clk 0:02:40]} 2. Nc3 {[%clk 0:02:58]}  Nc6 {[%clk 0:02:39]} 3. Bb5 {[%clk 0:02:58]}  Nd4 {[%clk 0:02:36]} 4. Nf3 {[%clk 0:02:58]}  a6 {[%clk 0:02:29]} 5. Bd3 {[%clk 0:02:58]}  g6 {[%clk 0:02:25]} 6. b4 {[%clk 0:02:55]}  Nxf3+ {[%clk 0:02:13]} 7. Qxf3 {[%clk 0:02:56]}  cxb4 {[%clk 0:02:13]} 8. Nd5 {[%clk 0:02:56]}  Bg7 {[%clk 0:02:14]} 9. Rb1 {[%clk 0:02:40]}  Nf6 {[%clk 0:02:10]} 10. Bb2 {[%clk 0:02:27]}  O-O {[%clk 0:01:55]} 11. Nxb4 {[%clk 0:02:19]}  d6 {[%clk 0:01:49]} 12. O-O {[%clk 0:02:17]}  Qa5 {[%clk 0:01:39]} 13. Bxf6 {[%clk 0:02:09]}  Bxf6 {[%clk 0:01:22]} 14. Nd5 {[%clk 0:02:09]}  Bg5 {[%clk 0:01:18]} 15. Qg3 {[%clk 0:02:01]}  h6 {[%clk 0:00:39]} 16. f4 {[%clk 0:01:55]}  Bf6 {[%clk 0:00:25]} 17. Nxf6+ {[%clk 0:01:42]}  exf6 {[%clk 0:00:26]} 18. e5 {[%clk 0:01:42]}  f5 {[%clk 0:00:26]} 19. exd6 {[%clk 0:01:35]}  Qc5+ {[%clk 0:00:22]} 20. Kh1 {[%clk 0:01:36]}  Qxd6 {[%clk 0:00:23]} 21. Rfe1 {[%clk 0:01:32]}  b5 {[%clk 0:00:17]} 22. Qh4 {[%clk 0:01:23]}  Kh7 {[%clk 0:00:14]} 23. Re7 {[%clk 0:01:24]}  Be6 {[%clk 0:00:12]} 24. Qf6 {[%clk 0:01:19]}  Rae8 {[%clk 0:00:08]} 25. Ra7 {[%clk 0:01:12]}  Qb6 {[%clk 0:00:05]} 26. Re7 {[%clk 0:01:11]}  Qd6 {[%clk 0:00:03]} 27. Rxe8 {[%clk 0:01:08]}  Rxe8 {[%clk 0:00:04]} 28. h4 {[%clk 0:01:08]}  Qd8 {[%clk 0:00:04]} 29. Qxd8 {[%clk 0:01:05]}  Rxd8 {[%clk 0:00:05]} 30. a4 {[%clk 0:01:01]}  bxa4 {[%clk 0:00:05]} 31. Ra1 {[%clk 0:01:01]}  Bd7 {[%clk 0:00:04]} 32. Bxa6 {[%clk 0:01:00]}  Kg7 {[%clk 0:00:04]} 33. c4 {[%clk 0:00:58]}  Bc6 {[%clk 0:00:04]} 34. Ra2 {[%clk 0:00:55]}  Rd4 {[%clk 0:00:04]} 35. Kh2 {[%clk 0:00:51]}  Rxf4 {[%clk 0:00:03]} 36. g3 {[%clk 0:00:52]}  Rd4 {[%clk 0:00:02]} 37. Kg1 {[%clk 0:00:51]}  Kf6 {[%clk 0:00:02]} 38. Kf2 {[%clk 0:00:52]}  Ke5 {[%clk 0:00:02]} 39. Ke3 {[%clk 0:00:52]}  Rg4 {[%clk 0:00:02]} 40. Kf2 {[%clk 0:00:52]}  Rd4 {[%clk 0:00:02]} 41. c5 {[%clk 0:00:52]}  Kd5 {[%clk 0:00:02]} 42. Be2 {[%clk 0:00:52]}  Kxc5 {[%clk 0:00:02]} 43. Rc2+ {[%clk 0:00:52]}  Kd6 {[%clk 0:00:01]} 44. Ke3 {[%clk 0:00:53]}  Rd5 {[%clk 0:00:02]} 45. d4 {[%clk 0:00:53]}  Re5+ {[%clk 0:00:02]} 46. dxe5+ {[%clk 0:00:53]}  Kd7 {[%clk 0:00:02]} 47. Bc4 {[%clk 0:00:52]}  Ke7 {[%clk 0:00:02]} 48. Bxf7 {[%clk 0:00:51]}  Be4 {[%clk 0:00:02]} 49. Rc7+ {[%clk 0:00:50]}  Kd8 {[%clk 0:00:00]} 50. Ra7 {[%clk 0:00:50]} 1-0


[Site "https://www.chess.com"]